Workbook

Sheet Субсидия
B1: "Согласовано" | O1: "Утверждаю"
B2: Директор МАОУ " Инженерный лицей" | O2: Директор ООО "Татнефть-УРС"
B3: __________Н.Н. Шакирова | O3: _______________Т.М.Мишанова
B4: "___"__________2026г. | O4: "__"___________2026г.
B7: ПРИМЕРНОЕ ДВУХНЕДЕЛЬНОЕ МЕНЮ ДЛЯ ОБУЧАЮЩИХСЯ В ОБЩЕОБРАЗОВАТЕЛЬНЫХ ОРГАНИЗАЦИЯХ НА СУБСИДИЮ
A9: № рецептуры | B9: Наименование блюд | E9: Выход | F9: Белки, г | G9: Жиры, г | H9: Углеводы, г | I9: Калорийность, ккал | J9: Витамин B1, мг | K9: Витамин С, мг | L9: Витамин А, мг | M9: Витамин Е, мг | O9: Ca, мг | P9: P, мг | Q9: Mg, мг | R9: Fe, мг
A10: 1-ая неделя
B11: 1 день
B12: ЧАЙ С САХАРОМ | E12: 200/10 | F12: 0.040 | G12: 0.012 | H12: 75.000 | I12: 30 | J12: 0.003 | K12: 2.800 | L12: 0.000 | M12: 0.014 | O12: 3.250 | P12: 1.540 | Q12: 0.840 | R12: 0.087
B13: БАТОН | E13: 50 | F13: 3.75 | G13: 1.45 | H13: 25.7 | I13: 130.5 | J13: 0.033 | K13: 0 | L13: 0 | M13: 0.33 | N13: 6 | O13: 19.5 | P13: 4.2 | Q13: 0.33
B14: Итого: | F14: =SUM(F12:F13) -> 3.790 | G14: 1.462 | H14: 100.700 | I14: 161 | J14: 0.036 | K14: 2.800 | L14: 0 | M14: 0.344 | O14: =SUM(O12:O13) -> 22.750 | P14: =SUM(P12:P13) -> 5.740 | Q14: =SUM(Q12:Q13) -> 1.170 | R14: =SUM(R12:R13) -> 0.087
B15: 2 день
B16: ЧАЙ С САХАРОМ | E16: 200/10 | F16: 0.040 | G16: 0.012 | H16: 75.000 | I16: 30 | J16: 0.003 | K16: 2.800 | L16: 0.000 | M16: 0.014 | O16: 3.250 | P16: 1.540 | Q16: 0.840 | R16: 0.087
B17: ПЕЧЕНЬЕ | E17: 30 | F17: 2.250 | G17: 2.940 | H17: 22.320 | I17: 126 | J17: 0.120 | K17: 0 | L17: 0 | M17: 1.250 | O17: 9.900 | P17: 38.300 | Q17: 14.800 | R17: 0.900
B18: Итого: | F18: =SUM(F16:F17) -> 2.290 | G18: 2.952 | H18: 97.320 | I18: 156 | J18: 0.123 | K18: 2.800 | L18: 0.0 | M18: 1.264 | O18: =SUM(O16:O17) -> 13.15 | P18: =SUM(P16:P17) -> 39.840 | Q18: =SUM(Q16:Q17) -> 15.640 | R18: =SUM(R16:R17) -> 0.987
B19: 3 день
B20: ЧАЙ С МОЛОКОМ | E20: 7/50/150 | F20: 1.52 | G20: 1.35 | H20: 15.900 | I20: 81 | J20: 0.04 | K20: 1.33 | L20: 0.16 | M20: 0 | O20: 136.600 | P20: 92.8 | Q20: 5.4 | R20: 0.110
B21: БАТОН | E21: 50 | F21: 3.75 | G21: 1.45 | H21: 25.7 | I21: 130.5 | J21: 0.033 | K21: 0 | L21: 0 | M21: 0.33 | N21: 6 | O21: 19.5 | P21: 4.2 | Q21: 0.33
B22: Итого: | F22: =SUM(F20:F21) -> 5.270 | G22: 2.800 | H22: 41.600 | I22: 212 | J22: 0.073 | K22: 1.33 | L22: 0.16 | M22: 0.33 | O22: =SUM(O20:O21) -> 156.100 | P22: =SUM(P20:P21) -> 97.00 | Q22: =SUM(Q20:Q21) -> 5.730 | R22: =SUM(R20:R21) -> 0.110
B23: 4 день
B24: ЧАЙ С САХАРОМ | E24: 200/10 | F24: 0.040 | G24: 0.012 | H24: 75.000 | I24: 30 | J24: 0.003 | K24: 2.800 | L24: 0.000 | M24: 0.014 | O24: 3.250 | P24: 1.540 | Q24: 0.840 | R24: 0.087
B25: ПЕЧЕНЬЕ | E25: 30 | F25: 2.250 | G25: 2.940 | H25: 22.320 | I25: 126 | J25: 0.120 | K25: 0 | L25: 0 | M25: 1.250 | O25: 9.900 | P25: 38.300 | Q25: 14.800 | R25: 0.900
B26: Итого: | F26: =SUM(F24:F25) -> 2.290 | G26: =SUM(G24:G25) -> 2.952 | H26: =SUM(H24:H25) -> 97.320 | I26: 156 | J26: =SUM(J24:J25) -> 0.12 | K26: 15.523 | L26: =SUM(L24:L25) -> 0.0 | M26: 3.100 | O26: =SUM(O24:O25) -> 13.150 | P26: =SUM(P24:P25) -> 39.840 | Q26: 65.900 | R26: =SUM(R24:R25) -> 0.987
B27: 5 день
B28: ЧАЙ С САХАРОМ | E28: 200/10 | F28: 0.040 | G28: 0.012 | H28: 75.000 | I28: 30 | J28: 0.003 | K28: 2.800 | L28: 0.000 | M28: 0.014 | O28: 3.250 | P28: 1.540 | Q28: 0.840 | R28: 0.087
B29: БАТОН | E29: 50 | F29: 3.75 | G29: 1.45 | H29: 25.7 | I29: 130.5 | J29: 0.033 | K29: 0 | L29: 0 | M29: 0.33 | N29: 6 | O29: 19.5 | P29: 4.2 | Q29: 0.33
B30: Итого: | F30: =SUM(F28:F29) -> 3.790 | G30: 1.462 | H30: 100.700 | I30: 161 | J30: 0.0 | K30: 2.800 | L30: 0 | M30: 0.344 | O30: =SUM(O28:O29) -> 22.750 | P30: =SUM(P28:P29) -> 5.740 | Q30: =SUM(Q28:Q29) -> 1.17 | R30: =SUM(R28:R29) -> 0.087
B31: 6 день
B32: ЧАЙ С САХАРОМ | E32: 200/10 | F32: 0.040 | G32: 0.012 | H32: 75.000 | I32: 30 | J32: 0.003 | K32: 2.800 | L32: 0.000 | M32: 0.014 | O32: 3.250 | P32: 1.540 | Q32: 0.840 | R32: 0.087
B33: БУЛОЧКА | E33: 50 | F33: 3.500 | G33: 5.900 | H33: 26.700 | I33: 174 | J33: 0.000 | K33: 0 | L33: 0 | M33: 0.000 | O33: 7.250 | P33: 5.000 | Q33: 23.000 | R33: 0.500
B34: Итого: | F34: =SUM(F32:F33) -> 3.540 | G34: 5.912 | H34: 101.700 | I34: 204 | J34: 0.003 | K34: 2.800 | L34: 0.000 | M34: 0 | O34: =SUM(O32:O33) -> 10.500 | P34: =SUM(P32:P33) -> 6.540 | Q34: =SUM(Q32:Q33) -> 23.840 | R34: =SUM(R32:R33) -> 0.587
A35: № РЕЦЕПТУР | B35: Наименование блюд | E35: Выход | F35: Белки, г | G35: Жиры, г | H35: Углеводы, г | I35: Калорийность, ккал | J35: Витамин B1, мг | K35: Витамин С, мг | L35: Витамин А, мг | M35: Витамин Е, мг | O35: Ca, мг | P35: P, мг | Q35: Mg, мг | R35: Fe, мг
B36: 2-ая неделя
B37: 1 день
B38: ЧАЙ С САХАРОМ | E38: 200/10 | F38: 0.53 | G38: 0 | H38: 9.470 | I38: 40 | J38: - | K38: 0.27 | L38: 0 | M38: 0 | O38: 13.600 | P38: 22.13 | Q38: 11.73 | R38: 0.100
B39: ПЕЧЕНЬЕ | E39: 30 | F39: 2.250 | G39: 2.940 | H39: 22.320 | I39: 126 | J39: 0.120 | K39: 0 | L39: 0 | M39: 1.250 | O39: 9.900 | P39: 38.300 | Q39: 14.800 | R39: 0.900
B40: Итого: | F40: =SUM(F38:F39) -> 2.780 | G40: 2.940 | H40: 31.790 | I40: 166 | J40: 0.12 | K40: 0.270 | L40: 0 | M40: 1.250 | O40: =SUM(O38:O39) -> 23.500 | P40: =SUM(P38:P39) -> 60.430 | Q40: =SUM(Q38:Q39) -> 26.5 | R40: =SUM(R38:R39) -> 1.00
B41: 2 день
B42: ЧАЙ С САХАРОМ | E42: 200/10 | F42: 0.04 | G42: 0.01 | H42: 7.500 | I42: 40 | J42: - | K42: 0.27 | L42: 0 | M42: 0 | O42: 13.600 | P42: 22.13 | Q42: 11.73 | R42: 0.100
B43: БАТОН | E43: 50 | F43: 3.75 | G43: 1.45 | H43: 25.7 | I43: 130.5 | J43: 0.033 | K43: 0 | L43: 0 | M43: 0.33 | N43: 6 | O43: 19.5 | P43: 4.2 | Q43: 0.33
B44: Итого: | F44: =SUM(F42:F43) -> 3.790 | G44: 1.460 | H44: 33.200 | I44: 171 | J44: 0.03 | K44: 0.3 | L44: 0 | M44: 0.330 | O44: =SUM(O42:O43) -> 33.10 | P44: =SUM(P42:P43) -> 26.33 | Q44: =SUM(Q42:Q43) -> 12.06 | R44: =SUM(R42:R43) -> 0.100
B45: 3 день
B46: ЧАЙ С МОЛОКОМ | E46: 7/50/150 | F46: 1.52 | G46: 1.35 | H46: 15.900 | I46: 81 | J46: 0.04 | K46: 1.33 | L46: 0.16 | M46: 0 | O46: 136.600 | P46: 92.8 | Q46: 5.4 | R46: 0.110
B47: ПЕЧЕНЬЕ | E47: 30 | F47: 2.250 | G47: 2.940 | H47: 22.320 | I47: 126 | J47: 0.120 | K47: 0 | L47: 0 | M47: 1.250 | O47: 9.900 | P47: 38.300 | Q47: 14.800 | R47: 0.900
B48: Итого: | F48: =SUM(F46:F47) -> 3.770 | G48: 4.290 | H48: 38.220 | I48: 207 | J48: 0.160 | K48: 1.330 | L48: 0.16 | M48: 1.250 | O48: =SUM(O46:O47) -> 146.500 | P48: =SUM(P46:P47) -> 131.100 | Q48: =SUM(Q46:Q47) -> 20.200 | R48: =SUM(R46:R47) -> 1.010
B49: 4 день
B50: КОМПОТ ИЗ СУХОФРУКТОВ | E50: 200 | F50: 0.660 | G50: 0.090 | H50: 32.010 | I50: 132.5 | J50: 0.000 | K50: 0.200 | L50: 80.000 | M50: 0.000 | O50: 18.900 | P50: 3.100 | Q50: 4.800 | R50: 0.500
B51: БАТОН | E51: 50 | F51: 3.75 | G51: 1.45 | H51: 25.7 | I51: 130.5 | J51: 0.033 | K51: 0 | L51: 0 | M51: 0.33 | N51: 6 | O51: 19.5 | P51: 4.2 | Q51: 0.33
B52: Итого: | F52: =SUM(F50:F51) -> 4.410 | G52: 1.540 | H52: 57.710 | I52: 263 | J52: 0.033 | K52: 0.20 | L52: 80 | M52: 0.33 | O52: =SUM(O50:O51) -> 38.400 | P52: =SUM(P50:P51) -> 7.30 | Q52: =SUM(Q50:Q51) -> 5.130 | R52: =SUM(R50:R51) -> 0.5
B53: 5 день
B54: ЧАЙ С САХАРОМ | E54: 200/8 | F54: 0.53 | G54: 0 | H54: 9.470 | I54: 40 | J54: - | K54: 0.27 | L54: 0 | M54: 0 | O54: 13.600 | P54: 22.13 | Q54: 11.73 | R54: 0.100
B55: БАТОН | E55: 50 | F55: 3.75 | G55: 1.45 | H55: 25.7 | I55: 130.5 | J55: 0.033 | K55: 0 | L55: 0 | M55: 0.33 | N55: 6 | O55: 19.5 | P55: 4.2 | Q55: 0.33
B56: Итого: | F56: =SUM(F54:F55) -> 4.280 | G56: 1.450 | H56: 35.170 | I56: 171 | J56: 0.03 | K56: 0.270 | L56: 0 | M56: 0.330 | O56: =SUM(O54:O55) -> 33.100 | P56: =SUM(P54:P55) -> 26.33 | Q56: =SUM(Q54:Q55) -> 12.060 | R56: =SUM(R54:R55) -> 0.100
B57: 6 день
B58: СОК ФРУКТОВЫЙ | E58: 200 | F58: 1.000 | G58: 0.012 | H58: 20.200 | I58: 85 | J58: 0.003 | K58: 2.800 | L58: 0.000 | M58: 0.014 | O58: 3.250 | P58: 1.540 | Q58: 0.840 | R58: 0.087
B59: БУЛОЧКА | E59: 50 | F59: 3.500 | G59: 5.900 | H59: 26.700 | I59: 174 | J59: 0.000 | K59: 0 | L59: 0 | M59: 0.000 | O59: 7.250 | P59: 5.000 | Q59: 23.000 | R59: 0.500
B61: Итого: | F61: =SUM(F58:F60) -> 4.50 | G61: 5.912 | H61: 46.900 | I61: 259 | J61: 0.003 | K61: 2.800 | L61: 0.000 | M61: 0.014 | O61: =SUM(O58:O60) -> 10.500 | P61: =SUM(P58:P60) -> 6.540 | Q61: =SUM(Q58:Q60) -> 23.840 | R61: =SUM(R58:R60) -> 1

Sheet ГПД
B1: "Согласовано" | M1: "Утверждаю"
B2: Директор МАОУ " Инженерный лицей" | M2: Директор ООО "Татнефть-УРС"
B3: __________Н.Н. Шакирова | M3: _______________Т.М.Мишанова
B4: "___"__________2026г. | M4: "__"___________2026г.
B9: Примерное меню для учащихся посещающих группы продленного дня
C10: на весенний период 2025-2026 учебный год
A11: № по сб. рец. | B11: Наименование блюд | C11: Выход, г | D11: Белки, г | E11: Жиры, г | F11: Углеводы, г | G11: Энергетическая ценность, ккал | H11: В 1 | I11: С | J11: А | K11: Е | L11: Са | M11: Mg | N11: P | O11: Fe
A12: Первая неделя
B13: 1 день
A14: 82 | B14: Суп картофельный с гречневой крупой и куриными фрикадельками | C14: 15/250 | D14: 4.16 | E14: 4 | F14: 12.19 | G14: 107.3 | H14: 0.22 | I14: 5.07 | J14: 76.2 | K14: 3.36 | L14: 35.22 | M14: 59.97 | N14: 157.6 | O14: 2.7
A15: №588 96г | B15: Чай с сахаром | C15: 200/10 | D15: 0.04 | E15: 0.01 | F15: 7.5 | G15: 30 | H15: 0.003 | I15: 2.8 | J15: 0 | K15: 0.014 | L15: 3.25 | M15: 1.54 | N15: 0.84 | O15: 0.087
B16: Хлеб пшеничный | C16: 1/30 | D16: 3.75 | E16: 1.5 | F16: 24.3 | G16: 126 | H16: 0.12 | I16: 0 | J16: 0 | K16: 1.25 | L16: 9.9 | M16: 38.3 | N16: 14.8 | O16: 0.9
B17: Булочка домашняя | C17: 50 | D17: 3.75 | E17: 1.5 | F17: 24.3 | G17: 126 | H17: 0.12 | I17: 0 | J17: 0 | K17: 1.25 | L17: 9.9 | M17: 38.3 | N17: 14.8 | O17: 0.9
B18: Итого: | D18: =SUM(D14:D17) -> 11.7 | E18: 7.01 | F18: 68.29 | G18: 389.3 | H18: 0.463 | I18: 7.87 | J18: 76.2 | K18: 5.874 | L18: 58.27 | M18: 138.11 | N18: 188.04 | O18: 4.587
B19: 2 день
A20: 112 | B20: Суп картофельный с вермишелью с куриными фрикадельками | C20: 15/250 | D20: 8.6 | E20: 13.6 | F20: 20.7 | G20: 240.3 | H20: 0.12 | I20: 7.07 | J20: 76 | K20: 2.26 | L20: 28.12 | M20: 30.01 | N20: 119.9 | O20: 1.8
A21: 652/1996г | B21: Чай с сахаром | C21: 200/10 | D21: 0.04 | E21: 0.01 | F21: 7.5 | G21: 30 | H21: 0.003 | I21: 2.8 | J21: 0 | K21: 0.014 | L21: 3.25 | M21: 1.54 | N21: 0.84 | O21: 0.087
B22: Батон | C22: 50 | D22: 3.75 | E22: 1.5 | F22: 24.3 | G22: 126 | H22: 0.12 | I22: 0 | J22: 0 | K22: 1.25 | L22: 9.9 | M22: 38.3 | N22: 14.8 | O22: 0.9
B23: Итого: | D23: =SUM(D20:D22) -> 12.39 | E23: 15.11 | F23: 52.5 | G23: 396.3 | H23: 0.243 | I23: 9.87 | J23: 76 | K23: 3.524 | L23: 41.27 | M23: 69.85 | N23: 135.54 | O23: 2.787
B24: 3 день
A25: 95 | B25: Рассольник Ленинградский с куриными фрик.со сметаной | C25: 15/250/10 | D25: 8.4 | E25: 15 | F25: 15.2 | G25: 234.8 | H25: 0.12 | I25: 11.07 | J25: 76.2 | K25: 2.06 | L25: 49.42 | M25: 35.21 | N25: 127.7 | O25: 1.9
B26: Чай с молоком | C26: 7/50/150 | D26: 1.52 | E26: 1.35 | F26: 15.900 | G26: 81 | H26: 0.04 | I26: 1.33 | J26: 0.16 | K26: 0 | L26: 136.600 | M26: 5.4 | N26: 92.8 | O26: 0.110
B27: Батон | C27: 50 | D27: 3.75 | E27: 1.5 | F27: 24.3 | G27: 126 | H27: 0.12 | I27: 0 | J27: 0 | K27: 1.25 | L27: 9.9 | M27: 38.3 | N27: 14.8 | O27: 0.9
B28: Итого: | D28: =SUM(D25:D27) -> 13.67 | E28: 17.85 | F28: 55.4 | G28: 441.8 | H28: 0.28 | I28: 12.4 | J28: 76.36 | K28: 3.31 | L28: 195.92 | M28: 78.91 | N28: 235.3 | O28: 2.91
B29: 4 день
A30: 102 | B30: Суп с картофельный с бобовыми и фрикадельками | C30: 15/250 | D30: 14 | E30: 16.75 | F30: 15.2 | G30: 277.55 | H30: 0.31 | I30: 5.1 | J30: 74 | K30: 7 | L30: 114.4 | M30: 82.71 | N30: 250.8 | O30: 5.2
A31: 588/1996 | B31: Чай с сахаром | C31: 200/10 | D31: 0.04 | E31: 0.01 | F31: 7.5 | G31: 30 | H31: 0.003 | I31: 2.8 | J31: 0 | K31: 0.014 | L31: 3.25 | M31: 1.54 | N31: 0.84 | O31: 0.087
B32: Батон | C32: 50 | D32: 3.75 | E32: 1.5 | F32: 24.3 | G32: 126 | H32: 0.12 | I32: 0 | J32: 0 | K32: 1.25 | L32: 9.9 | M32: 38.3 | N32: 14.8 | O32: 0.9
B33: Итого: | D33: =SUM(D30:D32) -> 17.79 | E33: 18.26 | F33: 47 | G33: 433.55 | H33: 0.433 | I33: 7.9 | J33: 74 | K33: 8.264 | L33: 127.55 | M33: 122.55 | N33: 266.44 | O33: 6.187
B34: 5 день
A35: 88 | B35: Щи из свежей капусты с куриными фрикадельками | C35: 15/250/10 | D35: 8.1 | E35: 14.9 | F35: 9.9 | G35: 210.7 | H35: 0.02 | I35: 14.37 | J35: 76.2 | K35: 1.96 | L35: 55.92 | M35: 29.41 | N35: 111.1 | O35: 1.8
A36: 652/1996г. | B36: Чай с сахаром | C36: 200/10 | D36: 0.53 | E36: 0 | F36: 9.47 | G36: 40 | H36: 0 | I36: 0.27 | J36: 0 | K36: 0 | L36: 13.6 | M36: 11.73 | N36: 22.13 | O36: 0.1
B37: Батон | C37: 50 | D37: 3.75 | E37: 1.5 | F37: 24.3 | G37: 126 | H37: 0.12 | I37: 0 | J37: 0 | K37: 1.25 | L37: 9.9 | M37: 38.3 | N37: 14.8 | O37: 0.9
B38: Итого: | D38: =SUM(D35:D37) -> 12.38 | E38: 16.4 | F38: 43.67 | G38: 376.7 | H38: 0.14 | I38: 14.64 | J38: 76.2 | K38: 3.21 | L38: 79.42 | M38: 79.44 | N38: 148.03 | O38: 2.8
B39: Вторая неделя
B40: 1 день
A41: 101 | B41: Суп картофельный с рисом с куриными фрикадельками | C41: 15/250 | D41: 9.3 | E41: 15.2 | F41: 29 | G41: 294.1 | H41: 0.12 | I41: 7.27 | J41: 76.2 | K41: 2.16 | L41: 35.72 | M41: 39.01 | N41: 145.5 | O41: 1.8
A42: №588 96г | B42: Чай с сахаром | C42: 200/10 | D42: 0.08 | E42: 0.012 | F42: 15.2 | G42: 62 | H42: 0.003 | I42: 2.8 | J42: 0 | K42: 0.014 | L42: 3.25 | M42: 1.54 | N42: 0.84 | O42: 0.087
B43: Батон | C43: 50 | D43: 3.75 | E43: 1.5 | F43: 24.3 | G43: 126 | H43: 0.12 | I43: 0 | J43: 0 | K43: 1.25 | L43: 9.9 | M43: 38.3 | N43: 14.8 | O43: 0.9
B44: Итого: | D44: =SUM(D41:D43) -> 13.13 | E44: 16.712 | F44: 68.5 | G44: 482.1 | H44: 0.243 | I44: 10.07 | J44: 76.2 | K44: 3.424 | L44: 48.87 | M44: 78.85 | N44: 161.14 | O44: 2.787
B45: 2 день
A46: 96 | B46: Рассольник Ленинградский с фрикадельками | C46: 15/250/10 | D46: 5.25 | E46: 13.55 | F46: 16.3 | G46: 220.75 | H46: 0.1 | I46: 6.6 | J46: 75.2 | K46: 2.14 | L46: 36.82 | M46: 31.91 | N46: 120.3 | O46: 1.6
A47: 702/1997г. | B47: Чай с сахаром | C47: 200/10 | D47: 0.08 | E47: 0.012 | F47: 15.2 | G47: 62 | H47: 0.003 | I47: 2.8 | J47: 0 | K47: 0.014 | L47: 3.25 | M47: 1.54 | N47: 0.84 | O47: 0.087
B48: Батон | C48: 50 | D48: 3.75 | E48: 1.5 | F48: 24.3 | G48: 126 | H48: 0.12 | I48: 0 | J48: 0 | K48: 1.25 | L48: 9.9 | M48: 38.3 | N48: 14.8 | O48: 0.9
B49: Итого: | D49: =SUM(D46:D48) -> 9.08 | E49: 15.062 | F49: 55.8 | G49: 408.75 | H49: 0.223 | I49: 9.4 | J49: 75.2 | K49: 3.404 | L49: 49.97 | M49: 71.75 | N49: 135.94 | O49: 2.587
B50: 3 день
A51: 88 | B51: Щи из свежей капусты с куриными фрикадельками | C51: 15/250/10 | D51: 8.1 | E51: 14.9 | F51: 9.9 | G51: 210.7 | H51: 0.02 | I51: 14.37 | J51: 76.2 | K51: 1.96 | L51: 55.92 | M51: 29.41 | N51: 111.1 | O51: 1.8
A52: 652/1996г. | B52: Чай с сахаром | C52: 200/10 | D52: 0.53 | E52: 0 | F52: 9.47 | G52: 40 | H52: 0 | I52: 0.27 | J52: 0 | K52: 0 | L52: 13.6 | M52: 11.73 | N52: 22.13 | O52: 0.1
B53: Батон | C53: 50 | D53: 3.75 | E53: 1.5 | F53: 24.3 | G53: 126 | H53: 0.12 | I53: 0 | J53: 0 | K53: 1.25 | L53: 9.9 | M53: 38.3 | N53: 14.8 | O53: 0.9
B54: Итого: | D54: =SUM(D51:D53) -> 12.38 | E54: 16.4 | F54: 43.67 | G54: 376.7 | H54: 0.14 | I54: 14.64 | J54: 76.2 | K54: 3.21 | L54: 79.42 | M54: 79.44 | N54: 148.03 | O54: 2.8
B55: 4 день
A56: 82 | B56: Борщ из свежей капусты с картофелем с куриными фрик.со сметаной | C56: 15/250/10 | D56: 12.5 | E56: 18.12 | F56: 30.21 | G56: 342 | H56: 0 | I56: 18.75 | J56: 0.4 | K56: 3.96 | L56: 98.5 | M56: 60.62 | N56: 185.6 | O56: 3.75
A57: 652/1996г. | B57: Компот из сухофруктов | C57: 200 | D57: 0.660 | E57: 0.090 | F57: 32.010 | G57: 132.5 | H57: 0.003 | I57: 0.200 | J57: 80.000 | K57: 0 | L57: 18.900 | M57: 4.800 | N57: 3.100 | O57: 0.500
B58: Батон | C58: 50 | D58: 3.75 | E58: 1.5 | F58: 24.3 | G58: 126 | H58: 0.12 | I58: 0 | J58: 0 | K58: 1.25 | L58: 9.9 | M58: 38.3 | N58: 14.8 | O58: 0.9
B59: Итого: | D59: =SUM(D56:D58) -> 16.91 | E59: 19.71 | F59: 86.52 | G59: 600.5 | H59: 0.123 | I59: 18.95 | J59: 80.4 | K59: 5.21 | L59: 127.3 | M59: 103.72 | N59: 203.5 | O59: 5.15
B60: 5 день
A61: 101 | B61: Суп картофельный с бобовыми и куриными фрикадельками | C61: 15/250 | D61: 7.68 | E61: 6.56 | F61: 16.62 | G61: 169.8 | H61: 0.22 | I61: 5.07 | J61: 76.2 | K61: 3.36 | L61: 35.22 | M61: 59.97 | N61: 157.6 | O61: 2.7
A62: 588/1996г. | B62: Чай с сахаром | C62: 200/8 | D62: 0.08 | E62: 0.012 | F62: 15.2 | G62: 62 | H62: 0.003 | I62: 2.8 | J62: 0 | K62: 0.014 | L62: 3.25 | M62: 1.54 | N62: 0.84 | O62: 0.087
B63: Хлеб пшеничный | C63: 30 | D63: 2.280 | E63: 0.240 | F63: 14.760 | G63: 71 | H63: 0.033 | I63: - | J63: - | K63: 0.330 | L63: 6.000 | M63: 19.500 | N63: 4.200 | O63: 0.330
B64: Итого: | D64: =SUM(D61:D63) -> 10.04 | E64: 6.812 | F64: 46.58 | G64: 302.8 | H64: 0.256 | I64: 7.87 | J64: 76.2 | K64: 3.704 | L64: 44.47 | M64: 81.01 | N64: 162.64 | O64: 3.117
B65: Итого за 10 дней | D65: =D64+D59+D54+D49+D44+D38+D33+D28+D23+D18 -> 129.47 | E65: =E64+E59+E54+E49+E44+E38+E33+E28+E23+E18 -> 149.326 | F65: 567.93 | G65: 4208.5 | H65: 2.544 | I65: 113.61 | J65: 762.96 | K65: 43.134 | L65: 852.46 | M65: 903.63 | N65: 1784.6 | O65: 35.712
